[Event "37th ECCC 2022"]
[Site "Mayrhofen"]
[Date "2022.10.03"]
[Round "1.65"]
[White "Barthel, Ansgar"]
[Black "Korpa, Bence"]
[Result "0-1"]
[ECO "B00"]
[WhiteElo "2076"]
[BlackElo "2496"]
[Annotator "TA"]
[PlyCount "82"]
[EventDate "2022.10.03"]
[EventType "team-tourn"]
[EventCountry "AUT"]
[SourceTitle "playchess.com"]
[Source "ChessBase"]
[SourceQuality "1"]
[TimeControl "40/5400+30:1800+30"]

{[%evp 13,82,50,72,45,31,22,21,8,19,12,33,0,0,-15,2,-4,4,-25,0,-27,-29,-32,-25,-36,-32,-22,-29,-37,-35,-62,-54,-57,-58,-222,-230,-220,-226,-231,-222,-227,-228,-229,-212,-216,-212,-241,-225,-250,-237,-409,-389,-382,-334,-394,-380,-375,-374,-465,-457,-498,-495,-474,-462,-587,-516,-713,-676,-568,-544,-842,-842]} 1. e4 {[%emt 0:00:03]} Nc6 {[%emt 0:00:08]} 2. Nf3 {[%emt 0:00:08]} d6 {[%emt 0:00:08]} 3. d4 {[%emt 0:00:18]} Nf6 {[%emt 0:00:10]} 4. Nc3 {[%emt 0:00:09]} Bg4 {[%emt 0:00:34]} 5. d5 {[%emt 0:03:48]} Nb8 {[%emt 0:01:02]} 6. h3 {[%emt 0:03:19]} Bxf3 {[%emt 0:00:43]} 7. Qxf3 {[%emt 0:00:10]} g6 {[%emt 0:00:14]} 8. Bb5+ {[%emt 0:07:27] B00: Queen's Fianchetto Defence, Nimzowitsch Defence.} Nbd7 {[%emt 0:02:24]} 9. O-O {[%emt 0:01:24]} Bg7 {[%emt 0:01:14]} 10. Re1 {[%emt 0:05:43] The position is equal.} O-O {[%emt 0:00:29]} 11. Bg5 {[%emt 0:01:32]} h6 {[%emt 0:07:06] [#]} 12. Bh4 $146 {[%emt 0:00:47]} ({Predecessor:} 12. Be3 c6 13. Bf1 Qa5 14. Qd1 Rac8 15. Bd2 Qc7 16. dxc6 Qxc6 17. Bb5 Qc7 18. Be3 {0-1 (61) Ciolac,G (2305)-Klinger,J (2475) Werfen 1990}) 12... c6 {[%emt 0:01:11]} 13. Bf1 {[%emt 0:03:44]} Qb6 {[%emt 0:06:46]} 14. Rab1 {[%emt 0:03:15]} Rfe8 {[%emt 0:02:23]} 15. Qe3 {[%emt 0:08:09]} Nh5 {[%emt 0:03:25]} 16. g4 {[%emt 0:05:25]} Qxe3 {[%emt 0:06:14]} 17. Rxe3 {[%emt 0:00:12]} Nf4 {[%emt 0:03:11]} 18. Bg3 {[%emt 0:01:03]} Be5 {[%emt 0:00:13]} 19. Ne2 {[%emt 0:02:09]} g5 {[%emt 0:05:22]} 20. Bxf4 {[%emt 0:02:07]} gxf4 {[%emt 0:00:06]} 21. Rf3 {[%emt 0:00:23]} Nf6 {[%emt 0:05:03][%csl LRd5,LRe4][%cal Bd7f6,Bf6e4,Be4d2][%mdl 32]} 22. dxc6 {[%emt 0:02:59]} bxc6 {[%emt 0:01:01]} 23. Nxf4 $2 {[%emt 0:00:29]} (23. Nc3 $15) 23... Nxe4 $19 {[%emt 0:00:30] [#] Strongly threatening ...Nd2.} 24. Re3 {[%emt 0:11:10]} Nd2 {[%emt 0:00:26]} 25. Rd1 {[%emt 0:00:07]} Bxf4 {[%emt 0:00:33]} ({Not} 25... Nxf1 26. Re4 $17) 26. Rxd2 {[%emt 0:00:07]} Bxe3 {[%emt 0:00:22]} 27. fxe3 {[%emt 0:00:03][%mdl 4096] Endgame KRR-KRB} Rab8 {[%emt 0:00:11]} 28. b3 {[%emt 0:00:07]} d5 {[%emt 0:00:54]} 29. e4 {[%emt 0:00:35]} e6 {[%emt 0:00:24]} ({Avoid the trap} 29... dxe4 $2 30. Re2) 30. exd5 {[%emt 0:00:54]} cxd5 {[%emt 0:00:16]} ({And not} 30... exd5 31. Rd4) 31. c4 $2 {[%emt 0:00:08] [#]} (31. Kf2) 31... dxc4 {[%emt 0:00:28]} 32. Bxc4 {[%emt 0:00:08]} Red8 {[%emt 0:00:08]} 33. Re2 {[%emt 0:00:36]} Rd1+ {[%emt 0:00:44]} 34. Kg2 {[%emt 0:00:07]} Rbd8 {[%emt 0:00:07]} 35. Kf3 {[%emt 0:01:06]} R8d2 {[%emt 0:00:28] Black is clearly winning.} 36. Rxd2 {[%emt 0:01:04]} Rxd2 {[%emt 0:00:08] KR-KB} 37. a4 {[%emt 0:00:03]} Rd4 {[%emt 0:01:23]} 38. h4 {[%emt 0:00:42]} Kg7 {[%emt 0:00:12][%cal Oh6h5]} 39. a5 {[%emt 0:01:02]} e5 {[%emt 0:00:21][%cal Of7f5] Hoping for ...f5!} 40. Kg3 {[%emt 0:00:34]} f6 {[%emt 0:01:28]} 41. Kf3 {[%emt 0:31:50]} h5 {[%emt 0:30:49] White got outplayed after the opening.  Weighted Error Value: White=0.48/Black=0.08 (flawless)} 0-1

[Event "37th ECCC 2022"]
[Site "Mayrhofen"]
[Date "2022.10.03"]
[Round "1.66"]
[White "Kaczur, Florian"]
[Black "Favier, Alain"]
[Result "1-0"]
[ECO "A28"]
[WhiteElo "2483"]
[BlackElo "1985"]
[Annotator "TA"]
[PlyCount "77"]
[EventDate "2022.10.03"]
[EventType "team-tourn"]
[EventCountry "AUT"]
[SourceTitle "playchess.com"]
[Source "ChessBase"]
[SourceQuality "1"]
[TimeControl "40/5400+30:1800+30"]

{[%evp 10,77,36,24,36,37,45,22,13,0,0,-10,26,21,45,31,113,105,118,115,214,227,198,128,127,91,102,92,93,31,53,20,28,36,117,29,72,47,47,48,53,47,60,52,46,43,92,74,84,48,53,0,29,0,0,16,2,3,2,2,16,23,173,162,693,647,837,827,746,733]} 1. c4 {[%emt 0:00:07]} e5 {[%emt 0:00:24]} 2. Nc3 {[%emt 0:01:01]} Nf6 {[%emt 0:00:11]} 3. Nf3 {[%emt 0:01:02]} Nc6 {[%emt 0:00:59]} 4. e3 {[%emt 0:02:50]} Be7 {[%emt 0:01:59]} 5. a3 {[%emt 0:04:14]} a5 {[%emt 0:03:53]} 6. d4 {[%emt 0:05:07]} exd4 {[%emt 0:02:52] A28: English Opening: Four Knights Variation.} 7. exd4 {[%emt 0:01:09]} d5 {[%emt 0:05:34]} 8. c5 {[%emt 0:04:20]} O-O {[%emt 0:02:38][%cal Oe7c5] [#] The position is equal.} 9. Bb5 $146 {[%emt 0:02:59]} ({Predecessor:} 9. Bd3 Bg4 10. Be3 Bxc5 11. Qa4 Bd6 12. h3 Bh5 13. O-O-O Re8 14. g4 Bg6 15. Bb5 {0-1 (26) Semcesen,D (2387)-Krejci,J (2305) Ceska Trebova 2008}) 9... Bg4 {[%emt 0:07:33]} 10. Be3 {[%emt 0:02:43]} Nb8 {[%emt 0:03:57]} (10... Ne4 $5 {[%cal Rf7f5]}) 11. h3 {[%emt 0:01:48]} Bf5 {[%emt 0:02:05]} 12. g4 {[%emt 0:08:30]} Be6 {[%emt 0:02:51]} (12... Bg6 $14) 13. Qc2 $16 {[%emt 0:05:33]} Nbd7 {[%emt 0:06:17][%cal Of6e4]} 14. Ng5 {[%emt 0:06:27] Against Ne4} Re8 {[%emt 0:07:22]} (14... g6 $16 {was necessary.}) 15. Nxe6 $18 {[%emt 0:03:39]} fxe6 {[%emt 0:00:03]} 16. f4 {[%emt 0:03:40]} (16. g5 $18) 16... c6 $16 {[%emt 0:02:25]} 17. Be2 {[%emt 0:00:41] aiming for g5.} Nf8 {[%emt 0:00:28]} 18. g5 {[%emt 0:01:36]} N6d7 {[%emt 0:00:07][%cal Oe6e5]} 19. O-O {[%emt 0:04:17]} (19. h4 $16) 19... b6 {[%emt 0:04:19]} 20. b4 {[%emt 0:00:56]} axb4 {[%emt 0:02:50]} 21. axb4 {[%emt 0:00:06]} bxc5 {[%emt 0:00:27]} (21... Rxa1 $14 22. Rxa1 Qc7) 22. bxc5 {[%emt 0:01:15] White has more active pieces.} (22. dxc5 Rxa1 23. Rxa1 e5 $15) ({White should try} 22. Rxa8 $16 Qxa8 23. bxc5 (23. dxc5 Qa3 $11)) 22... Qc7 {[%emt 0:01:05][%cal Oe7g5]} 23. h4 $36 {[%emt 0:04:17][%mdl 2048] White fights for an advantage.} (23. Bh5 $5 {[%cal Rh5e8]} Reb8 24. h4 $16) 23... Rxa1 {[%emt 0:02:47]} 24. Rxa1 {[%emt 0:00:12]} Ng6 {[%emt 0:00:20]} 25. Bh5 {[%emt 0:02:24]} Ndf8 26. Qf2 {[%emt 0:07:10]} Bd8 {[%emt 0:05:30]} 27. Ne2 {[%emt 0:05:59][%cal Bc3e2,Be2c1,Bc1d3,Bd3b4][%mdl 32]} Qf7 {[%emt 0:06:42]} (27... Qb7 $14) 28. Bg4 {[%emt 0:05:09] Black must now prevent h5.} Qb7 {[%emt 0:07:16]} 29. Nc1 {[%emt 0:04:08]} Ne7 {[%emt 0:00:53]} 30. Qd2 {[%emt 0:02:05]} Nf5 {[%emt 0:00:35]} 31. Bf2 {[%emt 0:00:24]} Bc7 {[%emt 0:04:09]} 32. Nd3 {[%emt 0:00:09]} Ra8 {[%emt 0:00:42]} 33. Rxa8 {[%emt 0:01:10]} Qxa8 {[%emt 0:00:02]} 34. h5 {[%emt 0:04:59]} Qa1+ {[%emt 0:01:14]} 35. Kg2 {[%emt 0:00:04]} Nxd4 {[%emt 0:01:14] [#] Black cannot hold the game after this.} (35... Qb1 $11 {and Black has nothing to worry.}) 36. Nb4 $1 $18 {[%emt 0:01:24]} e5 {[%emt 0:04:45] [#]} (36... Nb3 $2 37. Qe3 Nxc5 38. Qxc5 Bxf4 39. Nxc6 (39. Qxc6 Qe5 $16) 39... Bxg5 40. Nd4) (36... Nb5) 37. Nxc6 $1 {[%emt 0:01:31][%mdl 512] White is clearly winning.} Qa8 {[%emt 0:01:28]} (37... Qa4 38. Nxd4) 38. Nxd4 {[%emt 0:00:31]} exd4 {[%emt 0:00:45]} 39. Qxd4 {[%emt 0:00:27] Weighted Error Value: White=0.18 (very precise) /Black=0.46} 1-0

[Event "37th ECCC 2022"]
[Site "Mayrhofen"]
[Date "2022.10.04"]
[Round "2.1"]
[White "Rapport, Richard"]
[Black "Nemeth, Miklos"]
[Result "1-0"]
[ECO "A45"]
[WhiteElo "2754"]
[BlackElo "2459"]
[Annotator "TA"]
[PlyCount "149"]
[EventDate "2022.10.03"]
[EventType "team-tourn"]
[EventCountry "AUT"]
[SourceTitle "playchess.com"]
[Source "ChessBase"]
[SourceQuality "1"]
[TimeControl "40/5400+30:1800+30"]

{[%evp 9,149,10,16,16,31,24,35,22,29,26,33,12,24,16,13,14,12,8,18,0,0,0,8,11,10,0,8,10,8,8,8,10,9,0,0,0,0,0,0,0,0,0,0,0,0,0,22,0,11,0,0,0,0,0,34,34,41,34,35,26,48,48,48,34,56,56,56,56,56,56,56,56,56,56,56,56,56,56,56,0,0,0,1,0,0,0,0,0,0,0,0,0,0,0,0,0,0,0,0,0,0,0,80,80,80,80,80,0,40,27,10,0,0,0,108,101,285,280,282,245,1091,991,858,795,491,373,366,365,1260,1170,1096,970,5041,4081,4133,2512,4133,2637,2424,1760,1102,818]} 1. d4 {[%emt 0:00:45]} Nf6 {[%emt 0:00:35]} 2. Bg5 {[%emt 0:00:54]} Ne4 {[%emt 0:02:45]} 3. Bf4 {[%emt 0:01:06]} e6 {[%emt 0:00:11]} 4. Nd2 {[%emt 0:01:00]} Nxd2 {[%emt 0:01:51]} 5. Qxd2 {[%emt 0:00:33]} d5 {[%emt 0:00:14]} 6. O-O-O {[%emt 0:02:57] A45: Trompowsky Attack.} Bd6 {[%emt 0:02:06]} 7. h4 {[%emt 0:00:48] [#]} Nc6 $146 {[%emt 0:05:01]} ({Predecessor:} 7... Bxf4 8. Qxf4 Nd7 9. g4 c5 10. dxc5 Nxc5 11. Qd4 Nd7 12. Qxg7 Qf6 13. Qxf6 Nxf6 {1-0 (31) Haas,B-Kahl,K GER corr 1996}) 8. h5 {[%emt 0:05:08] White is slightly better.} Bd7 {[%emt 0:03:49]} 9. Nf3 {[%emt 0:04:52]} Qe7 {[%emt 0:01:40]} 10. e3 {[%emt 0:03:53]} O-O-O {[%emt 0:03:16]} 11. Kb1 {[%emt 0:02:12]} f6 {[%emt 0:03:08]} 12. Bd3 {[%emt 0:06:50]} Nb4 {[%emt 0:22:37]} 13. Be2 {[%emt 0:03:45]} Kb8 {[%emt 0:02:42]} 14. Rh4 {[%emt 0:10:32]} Nc6 {[%emt 0:09:29]} 15. a3 {[%emt 0:05:59]} g5 {[%emt 0:02:56]} 16. hxg6 {[%emt 0:00:38]} hxg6 {[%emt 0:00:08]} 17. Bxd6 {[%emt 0:02:16]} cxd6 {[%emt 0:00:35]} 18. Rdh1 {[%emt 0:04:34]} Rxh4 {[%emt 0:02:32]} 19. Rxh4 {[%emt 0:01:14]} g5 {[%emt 0:00:43]} 20. Rh2 {[%emt 0:03:03]} Qg7 {[%emt 0:01:21]} 21. Bb5 {[%emt 0:06:24]} Rh8 {[%emt 0:07:05]} 22. Bxc6 {[%emt 0:00:32] Rxh8+ is the strong threat.} Bxc6 {[%emt 0:00:14]} 23. Qb4 {[%emt 0:01:29]} Kc7 {[%emt 0:00:13]} 24. Qa5+ {[%emt 0:00:16]} Kb8 {[%emt 0:00:10]} 25. b3 {[%emt 0:08:29]} b6 {[%emt 0:05:49]} 26. Rxh8+ {[%emt 0:01:27]} Qxh8 $11 {[%emt 0:00:05][%mdl 4096] Endgame KQB-KQN} 27. Qe1 {[%emt 0:00:05]} Kc7 {[%emt 0:05:03]} 28. Qg1 {[%emt 0:01:58]} Be8 {[%emt 0:01:13]} 29. Qh2 {[%emt 0:04:30]} Qg7 {[%emt 0:00:08]} 30. Ng1 {[%emt 0:00:43]} Bg6 {[%emt 0:01:10]} 31. Ne2 {[%emt 0:00:27]} Be8 {[%emt 0:06:02]} 32. Nc3 {[%emt 0:00:30]} Bc6 {[%emt 0:00:50]} 33. Kb2 {[%emt 0:00:40]} f5 {[%emt 0:01:52]} 34. Qh3 {[%emt 0:01:50]} g4 {[%emt 0:02:08]} 35. Qh5 {[%emt 0:01:18]} Bd7 {[%emt 0:02:02]} 36. g3 {[%emt 0:05:39]} a6 {[%emt 0:01:06]} 37. a4 {[%emt 0:00:41]} Kb7 {[%emt 0:01:21]} 38. Qh4 {[%emt 0:00:46]} Kc8 {[%emt 0:00:14]} 39. Qh1 {[%emt 0:01:47]} Bc6 {[%emt 0:02:06]} 40. Na2 {[%emt 0:02:52]} a5 {[%emt 0:02:10]} 41. Nc3 {[%emt 0:32:05]} Kb7 {[%emt 0:06:43]} 42. Qh5 {[%emt 0:00:00]} Bd7 {[%emt 0:03:32]} 43. Qh4 {[%emt 0:00:00] Black must now prevent Qd8.} Kc7 {[%emt 0:00:35] Inhibits Qd8+.} 44. Ne2 {[%emt 0:00:00]} (44. Kc1 $14) 44... b5 {[%emt 0:09:07]} 45. axb5 {[%emt 0:00:00]} Bxb5 {[%emt 0:00:11]} 46. Nf4 {[%emt 0:00:00]} Bd7 {[%emt 0:00:10]} 47. Ka3 {[%emt 0:00:00]} a4 {[%emt 0:03:47]} 48. Kb2 {[%emt 0:00:00]} Qf8 {[%emt 0:03:00]} 49. Qh7 {[%emt 0:00:00][%csl LRa4,LRe6] Threatening mate with Nxe6+.} Kc6 {[%emt 0:01:42]} 50. Qh1 {[%emt 0:00:00]} Qb8 {[%emt 0:00:53]} 51. Qe1 {[%emt 0:00:00]} Qb5 {[%emt 0:00:17]} 52. Qc3+ {[%emt 0:00:00]} Kb7 {[%emt 0:00:09]} 53. Nd3 {[%emt 0:00:00]} Qb6 {[%emt 0:00:49]} 54. Ka3 {[%emt 0:00:00]} axb3 {[%emt 0:00:34]} 55. cxb3 {[%emt 0:00:00]} Qb5 {[%emt 0:01:04]} (55... Qa6+ $11 {keeps the balance.} 56. Kb2 Qb5) 56. Qb4 $1 $16 {[%emt 0:00:14]} Kc6 {[%emt 0:00:36]} 57. Qxb5+ {[%emt 0:03:40]} Kxb5 {[%emt 0:00:03] KB-KN} 58. Kb2 {[%emt 0:00:13]} (58. Nf4 $1 $16) 58... Bc8 {[%emt 0:00:19]} 59. Kc3 {[%emt 0:00:08]} Bd7 {[%emt 0:00:08]} 60. Ne1 {[%emt 0:01:02]} Ka5 {[%emt 0:00:24]} 61. f3 {[%emt 0:01:19]} gxf3 {[%emt 0:00:27]} (61... Be8 $11 {remains equal.}) 62. Nxf3 {[%emt 0:00:02]} Kb5 $2 {[%emt 0:00:24] This move loses the game for Black.} (62... Kb6 $16) 63. Ng5 $1 $18 {[%emt 0:00:13]} e5 {[%emt 0:05:37]} 64. Nf7 {[%emt 0:00:49][%csl LRd6,LRe5]} e4 $2 {[%emt 0:00:47]} (64... exd4+ 65. Kxd4 Kc6) 65. Nxd6+ {[%emt 0:00:14]} Kc6 {[%emt 0:00:04]} 66. Nf7 {[%emt 0:00:05] Strongly threatening Ne5+.} Kb5 {[%emt 0:00:14]} 67. Ng5 {[%emt 0:00:53]} Be8 {[%emt 0:00:37]} 68. Ne6 {[%emt 0:00:21] Intending Nc7+ and mate.} Bd7 $2 {[%emt 0:00:33]} (68... Ka5 69. Kb2 Bf7) 69. Nc7+ {[%emt 0:01:27] White is clearly winning.} Kc6 {[%emt 0:00:07]} 70. Na6 {[%emt 0:00:02]} Kb5 {[%emt 0:00:23]} 71. Nb4 {[%emt 0:00:04]} Be6 {[%emt 0:00:05]} 72. Na2 {[%emt 0:00:02] aiming for Kb2.} Bd7 {[%emt 0:02:40] [#]} 73. Kb2 $1 {[%emt 0:00:26]} Bc6 {[%emt 0:00:35] [#]} 74. Ka3 $1 {[%emt 0:00:07]} Ka5 {[%emt 0:00:28]} 75. Nc3 {[%emt 0:00:06] Weighted Error Value: White=0.05 (flawless) /Black=0.06 (flawless)} 1-0

[Event "37th ECCC 2022"]
[Site "Mayrhofen"]
[Date "2022.10.04"]
[Round "2.2"]
[White "Bokros, Albert"]
[Black "Deac, Bogdan-Daniel"]
[Result "0-1"]
[ECO "C00"]
[WhiteElo "2453"]
[BlackElo "2707"]
[Annotator "TA"]
[PlyCount "136"]
[EventDate "2022.10.03"]
[EventType "team-tourn"]
[EventCountry "AUT"]
[SourceTitle "playchess.com"]
[Source "ChessBase"]
[SourceQuality "1"]
[TimeControl "40/5400+30:1800+30"]

{[%evp 9,136,-8,17,0,0,0,0,-2,0,0,-16,-22,-23,-16,-28,-47,-32,-40,-27,-38,-23,-22,-32,-24,-30,-27,-16,-17,-33,-32,-14,-14,-8,-38,-44,-39,0,0,0,0,0,0,0,0,0,0,0,-20,-20,-37,-30,-33,-28,-12,0,-27,-30,-27,-33,-35,-32,-48,-37,-97,-97,-250,-229,-222,-201,-158,-31,-38,-39,-39,-41,-33,-37,-60,-12,-12,-12,-14,-14,-50,-52,-53,-38,-47,-38,-38,-38,-38,-33,-75,-77,-121,-118,-103,-38,-118,-120,-143,-166,-168,-159,-159,-112,-555,-555,-536,-536,-521,-510,-502,-454,-454,-417,-1508,-1256,-1033,-721,-721,-721,-704,-699,-699,-683,-29987,-29987]} 1. e4 {[%emt 0:00:08]} e6 {[%emt 0:00:03]} 2. d4 {[%emt 0:02:17]} d5 {[%emt 0:00:04]} 3. Bd3 {[%emt 0:01:30][%cal Bf1d3,Bd3e4,Be4f3][%mdl 32]} dxe4 {[%emt 0:07:08]} 4. Bxe4 {[%emt 0:00:12]} Nf6 {[%emt 0:00:04]} 5. Bf3 {[%emt 0:00:08]} Nc6 {[%emt 0:03:52]} 6. c3 {[%emt 0:05:48] C01: French: Exchange Variation.} Bd6 {[%emt 0:01:47]} 7. Ne2 {[%emt 0:04:43]} O-O {[%emt 0:05:58][%cal Bh8f8,Bf8e8,Be8e3][%mdl 32]} 8. O-O {[%emt 0:02:37] The position is equal.} e5 {[%emt 0:00:12][%cal Be6e5,Be5e4][%mdl 32]} 9. Bxc6 {[%emt 0:06:41]} bxc6 {[%emt 0:00:17] [#]} 10. Bg5 $146 {[%emt 0:02:52]} ({Predecessor:} 10. dxe5 Bxe5 11. Bf4 Bxf4 12. Nxf4 Ba6 13. Re1 Qxd1 14. Rxd1 g5 15. Nh3 Rab8 16. b3 {1-0 (62) Arjun,V (2394)-Rajlich,I (2411) Budapest 2007}) 10... h6 {[%emt 0:06:45]} 11. Bh4 {[%emt 0:03:43]} e4 {[%emt 0:00:43][%cal Od6h2]} 12. Bg3 {[%emt 0:07:26]} Re8 13. Nd2 {[%emt 0:02:49]} Ba6 {[%emt 0:15:46] Threatens to win with ...e3.} 14. Re1 {[%emt 0:01:59]} Rb8 {[%emt 0:01:45]} 15. b3 {[%emt 0:11:22]} e3 {[%emt 0:01:18]} 16. fxe3 {[%emt 0:09:25]} Rxe3 {[%emt 0:05:16]} 17. Nf1 {[%emt 0:06:16]} Re6 {[%emt 0:02:43]} 18. Bxd6 {[%emt 0:01:11]} Qxd6 {[%emt 0:00:52]} 19. Neg3 $1 {[%emt 0:03:03]} Rbe8 {[%emt 0:04:15]} 20. Rxe6 {[%emt 0:02:41]} Rxe6 {[%emt 0:00:36]} 21. Qf3 {[%emt 0:03:07] Against h5} g6 {[%emt 0:06:18]} 22. Rd1 {[%emt 0:01:59]} h5 {[%emt 0:00:33]} (22... Bxf1 $5 23. Rxf1 Kg7 $11) 23. c4 {[%emt 0:00:30]} Bc8 {[%emt 0:00:30]} 24. h3 {[%emt 0:01:30]} h4 {[%emt 0:05:07]} 25. Ne2 {[%emt 0:01:43]} Ne4 {[%emt 0:03:10]} 26. Nc3 {[%emt 0:05:43]} Nxc3 {[%emt 0:08:49]} 27. Qxc3 {[%emt 0:00:09]} Re4 {[%emt 0:00:04]} 28. Qd2 {[%emt 0:03:38]} Qe7 {[%emt 0:01:09]} 29. Qa5 Bf5 (29... Re2 $5 30. Rd2 $8 Re1 $15) 30. Qc3 {[%emt 0:06:24]} (30. Qxa7 $2 Re2 31. Rd2 Rxd2 32. Nxd2 Qe3+ 33. Kh2 Qf4+ 34. Kh1 Qxd2 $19) 30... Qg5 {[%emt 0:08:37]} 31. Qd2 {[%emt 0:01:13]} Qe7 {[%emt 0:00:17] Strongly threatening ...Re2.} 32. Qc3 {[%emt 0:00:10]} Re2 {[%emt 0:00:38]} 33. Rd2 {[%emt 0:00:27]} Re1 {[%emt 0:00:09]} 34. Qf3 {[%emt 0:01:31]} Qd6 {[%emt 0:09:39]} 35. Kf2 {[%emt 0:01:13]} Re4 {[%emt 0:00:09]} 36. Qc3 {[%emt 0:00:57]} (36. Qd1 $15) 36... Qf6 $1 $17 {[%emt 0:02:56] Black is much more active.} (36... c5 37. dxc5 Qxc5+ 38. Ne3 $11) 37. Kg1 $2 {[%emt 0:00:34]} (37. Qf3 $17 {is the only way for White.}) 37... c5 $1 $19 {[%emt 0:00:34][%cal Rc5d4]} 38. Qa5 {[%emt 0:00:29]} cxd4 {[%emt 0:00:52]} ({Worse is} 38... Rxd4 39. Qxc5 Rxd2 40. Nxd2 $11) 39. Qxc7 {[%emt 0:00:28]} Re1 {[%emt 0:00:29]} (39... Kg7 $1 $17 {[%cal Od4d3] White must now prevent ...d3!} 40. Qa5 Re5) 40. Qf4 $15 {[%emt 0:00:33]} d3 {[%emt 0:00:30]} 41. Rxd3 $1 {[%emt 0:03:39]} Qb6+ {[%emt 0:04:24]} 42. c5 $1 ({Don't go for} 42. Re3 $2 Bd3 43. Kh2 Rxf1 $19) 42... Qxc5+ {[%emt 0:10:33]} 43. Qd4 $1 {[%emt 0:02:43]} Qb6 {[%emt 0:08:34]} (43... Qb5 $1 $15 {is more appropriate.} 44. Rf3 Qb6 45. Qxb6 axb6) 44. Rd2 $11 Qxd4+ (44... Qa6 {feels hotter.} 45. Qf2 Rb1 46. Rd4 Qb6) 45. Rxd4 {[%emt 0:05:26][%mdl 4096] Endgame KRB-KRN} Ra1 {[%emt 0:00:57]} 46. Rd2 {[%emt 0:01:28]} Kg7 {[%emt 0:00:28]} 47. Kf2 {[%emt 0:00:36]} g5 {[%emt 0:00:06]} 48. Ne3 {[%emt 0:01:35]} Be6 {[%emt 0:00:25]} 49. Nd1 {[%emt 0:02:17]} f5 {[%emt 0:01:47]} 50. Nc3 $1 {[%emt 0:02:47]} g4 {[%emt 0:00:57] Hoping for ...g3+.} 51. hxg4 {[%emt 0:07:28]} fxg4 {[%emt 0:00:07]} 52. Ne4 {[%emt 0:02:49]} Bf5 {[%emt 0:04:01]} 53. Nd6 {[%emt 0:00:41]} Bg6 {[%emt 0:00:55]} (53... g3+ $1 $17 54. Kf3 Be6) 54. Nb5 {[%emt 0:01:15]} (54. Ke3 $15) 54... Kf6 {[%emt 0:03:09]} 55. Rd6+ {[%emt 0:01:29]} Kg5 {[%emt 0:00:30]} 56. Rd5+ {[%emt 0:00:15] [#]} Kh6 $1 {[%emt 0:00:51]} 57. Rd2 {[%emt 0:00:19]} g3+ {[%emt 0:00:40]} 58. Kf3 $2 {[%emt 0:01:23][%mdl 8192] [#]} (58. Ke3 $17) 58... Bh5+ $1 $19 {[%emt 0:00:37]} 59. Ke3 {[%emt 0:01:04]} Re1+ {[%emt 0:00:10]} 60. Kf4 {[%emt 0:00:10]} Rf1+ {[%emt 0:00:11]} 61. Ke3 {[%emt 0:00:24]} h3 {[%emt 0:00:50]} 62. gxh3 {[%emt 0:01:31]} Rf3+ {[%emt 0:00:46]} ({Not} 62... Bf3 $2 63. Nxa7 g2 64. Rxg2 Bxg2 65. Kd4 $19) 63. Ke4 {[%emt 0:00:49]} (63. Kd4 $142 Kg5 64. Nd6) 63... Rf2 {[%emt 0:00:16]} 64. Rd6+ {[%emt 0:01:07]} Kg5 {[%emt 0:00:18] And now ...g2 would win.} 65. Rd5+ {[%emt 0:01:32]} Kh4 {[%emt 0:00:30]} 66. Rd8 {[%emt 0:00:30]} g2 {[%emt 0:00:58]} 67. Rg8 {[%emt 0:00:09]} Kxh3 {[%emt 0:00:25] ( -> ...Bg4)} 68. Nd4 {[%emt 0:01:00]} Bg4 {[%emt 0:00:14] Prevents Nf5.  Weighted Error Value: White=0.22 (precise) /Black=0.10 (very precise)} 0-1